bitfinex/quotes_ETHUSD_20230118
["timestamp","ask_amount","ask_price","bid_price","bid_amount"]
[1674060978613,14.556008,1519.0,1518.7,4.938]
[1674060978825,1.0,1518.9,1518.7,4.938]
[1674060979072,13.16828,1518.8,1518.7,4.938]
[1674060979232,0.06,1519.4,1518.8,14.116]
[1674060979443,6.7776942,1519.7,1518.9,20.60203]
[1674060979656,6.7776942,1519.7,1518.9,35.84003]
[1674060979867,6.7776942,1519.7,1519.0,1.225]
[1674060980148,0.67776942,1519.6,1519.0,1.992]
[1674060980440,7.25853942,1519.6,1519.0,15.06308]
[1674060980600,0.066,1519.6,1519.0,21.71235]
[1674060980813,0.16849218,1519.7,1519.0,21.71235]
[1674060981291,0.1311742,1519.7,1519.1,3.7238]
[1674060981460,0.1311742,1519.7,1519.1,7.4388]
[1674060981680,0.1311742,1519.7,1519.2,35.27518]
[1674060981890,7.42e-05,1519.7,1519.3,7.4387]
[1674060982081,7.42e-05,1519.7,1519.4,23.03435]
[1674060982293,7.42e-05,1519.7,1519.5,5.2397]
[1674060982596,0.1311742,1520.0,1519.6,35.27101]
[1674060982765,0.1311742,1520.0,1519.7,7.5496]
[1674060982920,0.1311742,1520.0,1519.7,15.65055]
[1674060983251,0.1311742,1520.0,1519.7,8.0706]
[1674060983654,0.1311742,1520.0,1519.7,4.577]
[1674060984023,6.82324162,1520.0,1519.7,4.511]
[1674060984235,13.46819162,1520.0,1519.7,4.511]
[1674060984602,13.46819162,1520.0,1519.7,0.065]
[1674060984832,1.0,1519.8,1519.1,0.099]
[1674060985052,13.16144,1519.6,1519.1,0.057]
[1674060985266,13.22744,1519.6,1519.1,0.057]
[1674060985674,6.64672,1519.6,1519.1,0.057]
[1674060985962,13.22744,1519.6,1519.1,0.057]
[1674060986646,13.22744,1519.6,1519.1,1.97]
[1674060986861,1.322744,1519.5,1519.1,1.992]
[1674060987018,7.903964,1519.5,1519.1,0.992]
[1674060987228,1.388744,1519.5,1519.1,0.992]
[1674060987459,6.68403798,1519.6,1519.1,0.992]
[1674060987650,0.10331798,1519.6,1519.2,1.5]
[1674060987882,0.03731798,1519.6,1519.2,1.992]
[1674060988093,0.71568378,1519.6,1519.2,1.992]
[1674060988308,0.066,1519.7,1519.2,15.06141]
[1674060988650,6.82327162,1520.0,1519.5,1.0]
[1674060988820,0.31029162,1520.0,1519.5,18.47777]
[1674060989030,6.7101642,1520.0,1519.5,18.54377]
[1674060989257,0.1971742,1520.0,1519.5,18.54377]
[1674060989455,0.1311742,1520.0,1519.5,10.963]
[1674060989665,13.96671462,1520.0,1519.5,10.963]
[1674060989967,14.03271462,1520.0,1519.5,10.963]
[1674060990807,14.0700326,1520.0,1519.5,10.963]
[1674060993160,20.6490326,1520.0,1519.5,10.963]
[1674060993543,1.0,1519.9,1519.5,10.963]
[1674060993755,0.13731798,1519.8,1519.5,10.963]
[1674060993953,13.16048,1519.7,1519.5,10.963]
[1674060994163,13.22648,1519.7,1519.5,10.913]
[1674060998069,6.64624,1519.7,1519.5,10.913]
[1674060998410,0.066,1519.7,1519.5,10.913]
[1674060998627,0.066,1519.8,1519.6,5.2596]
[1674060998939,0.1311742,1520.0,1519.6,28.56794]
[1674060999158,0.1311742,1520.0,1519.6,21.98727]
[1674060999625,0.1311742,1520.0,1519.6,15.4066]
[1674060999839,0.1311742,1520.0,1519.7,1.937]
[1674061000211,14.62846442,1520.0,1519.7,0.992]
[1674061000521,0.03731798,1519.9,1519.7,0.992]
[1674061000729,1.03731798,1519.9,1519.7,0.992]
[1674061001042,19.73943,1519.8,1519.7,0.992]
[1674061001352,21.8831048,1519.8,1519.7,0.066]
[1674061001569,21.8831048,1519.8,1519.7,0.121]
[1674061001745,28.9565148,1519.8,1519.7,0.121]
[1674061002356,28.4629148,1519.8,1519.7,0.121]
[1674061003044,28.9565148,1519.8,1519.7,0.121]
[1674061003200,1.0,1519.7,1519.1,0.75]
[1674061003410,0.03731798,1519.6,1519.1,0.75]
[1674061003647,13.16262,1519.5,1519.1,0.75]
[1674061003857,13.22862,1519.5,1519.1,0.75]
[1674061004471,0.03731798,1519.4,1519.1,0.75]
[1674061004809,13.16394,1519.3,1519.1,0.75]
[1674061005000,13.22994,1519.3,1519.1,0.75]
[1674061005243,0.64731798,1519.2,1519.1,0.75]
[1674061005415,13.81213798,1519.2,1519.1,0.75]
[1674061005618,13.87813798,1519.2,1519.1,0.75]
[1674061005825,3.80869878,1519.2,1519.1,0.75]
[1674061006060,1.64731798,1519.2,1519.1,0.75]
[1674061006354,13.72355,1519.4,1519.1,0.75]
[1674061006567,6.64788,1519.4,1519.1,0.75]
[1674061006782,13.22976,1519.4,1519.1,0.75]
[1674061006988,1.322976,1519.3,1519.1,0.75]
[1674061007218,6.58208,1519.3,1519.1,0.75]
[1674061007426,6.64808,1519.3,1519.1,0.75]
[1674061007655,0.066,1519.3,1519.1,0.75]
[1674061007847,6.68461798,1519.5,1519.1,5.991]
[1674061008058,6.68461798,1519.5,1519.1,6.123]
[1674061008288,0.10331798,1519.5,1519.1,19.0906]
[1674061008615,0.03731798,1519.5,1519.1,12.701]
[1674061009127,0.066,1519.6,1519.1,25.90557]
[1674061009301,0.066,1519.8,1519.2,0.7238]
[1674061009510,6.58007,1519.8,1519.3,1.992]
[1674061009739,6.64607,1519.8,1519.3,19.25594]
[1674061009933,14.548692,1519.8,1519.3,12.74]
[1674061010296,14.548692,1519.8,1519.3,9.74]
[1674061010650,14.548692,1519.8,1519.4,5.625]
[1674061010861,6.64607,1519.8,1519.4,12.3655]
[1674061011111,6.64607,1519.8,1519.4,6.248]
[1674061011329,13.22588,1519.8,1519.5,5.988]
[1674061011540,6.64581,1519.8,1519.5,6.121]
[1674061011729,13.22562,1519.8,1519.5,6.121]
[1674061011942,6.64581,1519.8,1519.5,6.121]
[1674061012163,6.7103742,1520.0,1519.6,0.306]
[1674061012338,0.1311742,1520.2,1519.7,0.9786]
[1674061012552,0.1311742,1520.2,1519.8,0.23]
[1674061012914,0.1311742,1520.2,1519.9,36.48476]
[1674061013094,0.1311742,1520.2,1520.1,19.73553]
[1674061013305,0.1311742,1520.2,1520.1,29.30353]
[1674061013514,0.1311742,1520.2,1520.1,32.70553]
[1674061013758,0.13632978,1520.4,1520.2,1.0]
[1674061013981,0.13632978,1520.4,1520.3,0.431]
[1674061014155,0.13632978,1520.4,1520.3,29.63692]
[1674061014368,0.13632978,1520.4,1520.3,29.70292]
[1674061014565,0.13632978,1520.4,1520.3,32.47292]
[1674061014984,0.13774386,1520.8,1520.3,32.70292]
[1674061015196,0.13774386,1520.8,1520.4,12.90388]
[1674061015402,0.13774386,1520.8,1520.4,6.86]
[1674061016253,0.13774386,1520.8,1520.4,7.86]
[1674061016455,0.13774386,1520.8,1520.4,13.43721]
[1674061016666,0.13774386,1520.8,1520.4,16.31721]
[1674061016878,0.13774386,1520.8,1520.4,9.74]
[1674061017296,0.13774386,1520.8,1520.4,16.35239487]
[1674061017646,6.71344386,1520.8,1520.5,3.288]
[1674061017863,6.77944386,1520.8,1520.5,3.288]
[1674061018034,6.94614386,1520.8,1520.5,3.288]
[1674061018239,0.69461439,1520.7,1520.5,3.288]
[1674061018614,7.27057439,1520.7,1520.5,3.288]
[1674061018789,7.33657439,1520.7,1520.5,3.288]
[1674061018979,0.066,1520.7,1520.5,3.288]
[1674061019192,1.0,1520.7,1520.5,3.288]
[1674061019550,0.13774386,1520.8,1520.5,3.288]
[1674061019729,6.71330386,1520.8,1520.5,3.288]
[1674061019936,6.77930386,1520.8,1520.5,3.288]
[1674061020163,0.67793039,1520.7,1520.5,3.288]
[1674061020488,0.20374386,1520.8,1520.5,3.288]
[1674061020489,7.71323386,1520.8,1520.5,3.288]
[1674061020654,7.77922386,1520.8,1520.5,3.288]
[1674061020866,0.4933,1520.7,1520.5,3.288]
[1674061021192,2.559,1520.6,1520.3,0.154]
[1674061021426,0.4934,1520.5,1520.3,0.09]
[1674061021634,0.4934,1520.5,1520.3,0.088]
[1674061021825,0.066,1520.6,1520.3,0.088]
[1674061022048,0.066,1520.7,1520.5,6.57678]
[1674061022263,0.13774386,1520.8,1520.5,13.02878]
[1674061022445,0.13774386,1520.8,1520.5,6.452]
[1674061023295,0.46193104,1520.7,1520.5,6.452]
[1674061023506,1.46657425,1520.8,1520.5,19.60548]
[1674061023507,0.13774386,1520.8,1520.5,19.60548]
[1674061023717,0.63104386,1520.8,1520.5,13.0287]
[1674061023944,0.13774386,1520.8,1520.5,19.60548]
[1674061024157,0.13774386,1520.8,1520.5,6.452]
[1674061024376,0.13774386,1520.8,1520.5,19.60555]
[1674061025750,0.13774386,1520.8,1520.5,19.55555]
[1674061026329,0.13774386,1520.8,1520.6,1.93784268]
[1674061026590,0.13774386,1520.8,1520.7,26.06373]
[1674061026749,0.13774386,1520.8,1520.7,26.12973]
[1674061027201,0.13774386,1520.8,1520.7,27.12973]
[1674061027585,0.13966905,1521.0,1520.7,30.97758795]
[1674061027849,0.14220373,1521.6,1520.8,2.33337921]
[1674061028060,0.14220373,1521.6,1521.0,32.63377]
[1674061028229,0.14220373,1521.6,1521.2,25.81068]
[1674061028443,0.14220373,1521.6,1521.2,26.12268]
[1674061029811,0.14220373,1521.6,1521.4,9.85889]
[1674061030038,0.14220373,1521.6,1521.4,12.97489]
[1674061030214,0.066,1522.2,1521.4,19.54778]
[1674061030429,0.066,1522.4,1521.5,10.0908]
[1674061030639,1.0,1522.3,1521.7,26.04987]
[1674061030902,1.0,1522.6,1522.0,16.18932]
[1674061030903,1.126,1522.6,1522.0,16.18932]
[1674061031061,1.471643,1522.7,1522.0,19.42732]
[1674061031270,1.471643,1522.7,1522.2,16.74018]
[1674061031271,0.14688024,1522.4,1522.2,16.74018]
[1674061031478,0.14688024,1522.4,1522.2,26.10927]
[1674061031781,0.14688024,1522.4,1522.2,6.402]
[1674061032126,2.074,1522.3,1522.2,0.066]
[1674061032476,2.074,1522.3,1521.5,1.066]
[1674061032477,13.14065,1522.0,1521.5,1.066]
[1674061032793,2.074,1521.7,1521.5,1.0]
[1674061032983,1.3104,1521.6,1521.3,1.0]
[1674061033158,0.493,1521.6,1521.3,6.5733]
[1674061033510,5.074,1521.9,1521.3,13.21262]
[1674061033511,0.066,1521.9,1521.3,13.21262]
[1674061033719,1.2674,1522.2,1521.3,13.70572]
[1674061033720,1.2074,1522.2,1521.3,13.70572]
[1674061033896,1.0,1522.2,1521.3,13.70572]
[1674061034107,1.0,1522.2,1521.3,13.21262]
[1674061034430,2.067,1522.3,1521.3,13.21262]
[1674061034836,2.067,1522.3,1521.4,1.4931]
[1674061035209,2.37246683,1522.3,1521.6,19.71516]
[1674061035364,1.14688024,1522.4,1521.6,19.78116]
[1674061035587,0.63958024,1522.4,1521.7,1.493]
[1674061035810,0.14688024,1522.4,1521.9,6.57069]
[1674061036028,0.14688024,1522.4,1521.9,0.066]
[1674061036248,0.4928,1522.3,1521.7,6.63725]
[1674061036435,2.074,1522.0,1521.7,0.066]
[1674061036642,0.7003,1521.9,1521.4,0.066]
[1674061036888,2.056,1521.7,1521.3,6.63926]
[1674061037100,0.493,1521.6,1521.3,0.066]
[1674061037313,0.70274173,1521.8,1521.2,6.64170945]
[1674061037472,0.07027417,1521.8,1521.3,6.57302]
[1674061037683,2.14,1522.0,1521.3,6.63902]
[1674061037936,0.4929,1521.9,1521.3,13.21234]
[1674061038115,1.04959,1521.9,1521.4,14.14532]
[1674061038322,0.4929,1521.9,1521.5,0.00203906]
[1674061038533,0.066,1522.1,1521.6,19.71507]
[1674061038778,2.074,1522.2,1521.6,19.78107]
[1674061039147,0.88439626,1522.4,1521.9,6.57069]
[1674061039364,2.056,1522.3,1521.9,6.63673]
[1674061039622,2.074,1522.0,1521.5,0.06]
[1674061039839,2.074,1521.6,1521.4,6.63881]
[1674061040205,2.074,1521.6,1521.4,0.066]
[1674061040445,2.074,1521.6,1521.3,0.066]
[1674061040732,2.057,1521.4,1521.3,6.57329]
[1674061040984,1.066,1521.8,1521.3,6.63929]
[1674061040985,2.2466,1521.7,1521.3,6.63929]
[1674061041153,2.1806,1521.7,1521.3,6.63929]
[1674061041519,2.5903,1521.7,1521.3,6.63929]
[1674061041729,0.25903,1521.6,1521.3,6.63929]
[1674061041882,0.25903,1521.6,1521.3,13.21261]
[1674061042097,2.074,1521.7,1521.4,1.00203919]
[1674061042325,2.074,1521.7,1521.5,6.57246]
[1674061042540,2.074,1521.7,1521.5,6.63846]
[1674061042730,2.074,1521.7,1521.5,0.066]
[1674061043136,0.8174,1521.6,1521.4,6.63866]
[1674061043306,0.8174,1521.6,1521.4,0.066]
[1674061043475,2.074,1521.5,1521.3,0.066]
[1674061043704,0.8174,1521.4,1521.0,6.57435]
[1674061043886,0.066,1521.6,1521.1,13.15018959]
[1674061044094,2.067,1521.4,1521.1,0.066]
[1674061044424,2.067,1521.4,1521.0,0.066]
[1674061044618,2.067,1521.4,1521.0,3.0]
[1674061044825,0.2067,1521.3,1521.0,3.0]
[1674061045150,1.2128,1521.4,1521.0,9.57442]
[1674061045513,0.066,1521.6,1521.0,9.64042]
[1674061045682,2.074,1521.6,1521.2,6.57354]
[1674061045892,2.133,1521.8,1521.3,0.00203931]
[1674061046211,2.067,1521.8,1521.3,0.49513931]
[1674061046440,2.067,1521.8,1521.3,6.57507931]
[1674061046672,2.067,1521.8,1521.3,13.70749931]
[1674061046673,0.2067,1521.7,1521.3,13.70749931]
[1674061046865,0.2067,1521.7,1521.3,13.21439931]
[1674061047349,2.067,1521.8,1521.3,13.70549931]
[1674061047560,2.067,1521.8,1521.4,14.14529]
[1674061047771,2.067,1521.8,1521.4,13.21129]
[1674061048244,2.067,1521.8,1521.4,6.63846]
[1674061048449,0.2067,1521.7,1521.4,6.63846]
[1674061049990,0.2067,1521.7,1521.4,0.066]
[1674061050201,0.2067,1521.7,1521.3,6.64107931]
[1674061050432,0.2067,1521.7,1521.3,0.06803931]
[1674061050646,0.2067,1521.7,1521.3,0.00203931]
[1674061051088,2.133,1521.8,1521.3,17.14866931]
[1674061051243,2.123,1521.8,1521.3,17.16066931]
[1674061051453,0.06,1522.2,1521.4,0.4931]
[1674061051454,0.066,1522.1,1521.4,0.4931]
[1674061051713,0.21288024,1522.4,1521.6,19.71594]
[1674061051871,0.21288024,1522.4,1521.6,20.27494]
[1674061051872,0.14688024,1522.4,1521.6,20.27494]
[1674061052341,14.44836026,1522.4,1521.6,20.27494]
[1674061052557,14.51436026,1522.4,1521.8,6.57113]
[1674061052730,16.58836026,1522.4,1521.8,0.066]
[1674061052922,2.067,1522.2,1521.7,0.066]
[1674061053134,2.067,1522.2,1521.5,8.06511]
[1674061053135,6.57007,1522.1,1521.5,1.066]
[1674061053467,0.657007,1522.0,1521.5,13.14465]
[1674061053816,0.657007,1522.0,1521.5,13.21065]
[1674061054135,14.1403,1522.1,1521.5,6.63819]
[1674061054286,6.63613,1522.1,1521.5,6.63819]
[1674061054493,13.2064,1522.1,1521.5,6.63819]
[1674061054768,2.074,1521.8,1521.5,0.066]
[1674061054918,1.0,1521.7,1521.5,0.066]
[1674061055134,15.77588,1521.8,1521.5,0.066]
[1674061055600,8.71149,1521.8,1521.5,0.066]
[1674061055761,0.871149,1521.7,1521.4,0.00203919]
[1674061055976,0.871149,1521.7,1521.3,0.066]
[1674061055977,7.442769,1521.7,1521.3,0.066]
[1674061056190,0.73203231,1521.6,1521.2,6.57373]
[1674061056392,0.73203231,1521.6,1521.2,6.63973]
[1674061056832,0.73203231,1521.6,1521.2,6.63974]
[1674061057039,0.937149,1521.7,1521.2,13.21349]
[1674061057252,15.28269,1521.8,1521.2,6.63974]
[1674061057462,6.57162,1521.7,1521.2,1.366]
[1674061057712,13.20924,1521.7,1521.2,1.3]
[1674061058026,1.0,1521.5,1521.2,1.3]
[1674061058394,3.460924,1521.6,1521.2,7.8737]
[1674061058629,3.394924,1521.6,1521.2,7.9397]
[1674061058847,4.394924,1521.6,1521.2,7.9397]
[1674061059066,0.3394924,1521.5,1521.2,1.366]
[1674061059283,2.056,1521.4,1521.2,1.3]
[1674061059495,0.8156,1521.3,1521.2,1.3]
[1674061059858,0.066,1521.5,1521.2,14.4475]
[1674061060085,7.893074,1521.6,1521.2,1.366]
[1674061060292,0.066,1521.6,1521.2,14.44745]
[1674061060488,6.63703,1521.9,1521.2,15.00655]
[1674061060823,1.0,1521.7,1521.2,14.51345]
[1674061061054,0.1,1521.6,1521.2,1.366]
[1674061061267,6.67217,1521.6,1521.2,1.3]
[1674061061595,0.166,1521.6,1521.2,7.87345]
[1674061061805,2.0,1521.7,1521.2,14.5132]
[1674061061959,8.57162,1521.7,1521.2,14.5132]
[1674061062164,2.066,1521.7,1521.3,0.00585651]
[1674061062392,2.2066,1521.7,1521.4,19.7184]
[1674061062635,2.2066,1521.7,1521.4,6.6388]
[1674061062826,2.2066,1521.7,1521.5,1.00585574]
[1674061062827,2.0,1521.7,1521.5,1.00585574]
[1674061063182,2.0,1521.7,1521.6,6.57202]
[1674061063353,2.0,1521.7,1521.6,6.63802]
[1674061063688,2.0,1521.7,1521.6,13.21004]
[1674061063861,2.0,1521.7,1521.6,6.63802]
[1674061064080,2.0,1521.7,1521.6,6.58802]
[1674061064406,2.0,1521.7,1521.6,7.88802]
[1674061064616,0.955,1521.7,1521.6,14.95304]
[1674061064793,0.955,1521.7,1521.6,17.95304]
[1674061065004,0.955,1521.7,1521.6,7.88802]
[1674061065215,0.955,1521.7,1521.6,14.46004]
[1674061065635,0.955,1521.7,1521.6,17.95304]
[1674061065864,0.955,1521.7,1521.6,18.46004]
[1674061066059,0.126,1522.3,1521.7,1.0]
[1674061066266,0.14688024,1522.4,1521.7,4.493]
[1674061066475,0.14688024,1522.4,1521.9,1.0]
[1674061066727,0.14688024,1522.4,1522.0,13.14035]
[1674061067060,0.14688024,1522.4,1522.0,0.066]
[1674061067061,2.22088024,1522.4,1522.0,0.066]
[1674061067267,0.22208802,1522.3,1521.9,1.366]
[1674061067472,0.22208802,1522.3,1521.9,1.3]
[1674061067665,0.22208802,1522.3,1521.9,7.87071]
[1674061067850,0.63958024,1522.4,1521.9,14.50744]
[1674061068325,0.14688024,1522.4,1521.9,14.50744]
[1674061068808,0.63958024,1522.4,1521.9,7.93671]
[1674061069455,0.58958024,1522.4,1521.9,7.93671]
[1674061069632,2.08377794,1522.4,1521.9,7.93671]
[1674061069840,1.59107794,1522.4,1521.9,7.93671]
[1674061070318,0.09688024,1522.4,1521.9,14.5132942]
[1674061070467,0.09688024,1522.4,1521.9,15.0061942]
[1674061070686,0.09688024,1522.4,1521.9,14.50744]
[1674061071012,0.58958024,1522.4,1521.9,14.5132942]
[1674061071235,0.58958024,1522.4,1522.0,3.0]
[1674061071236,0.09688024,1522.4,1522.0,3.0]
[1674061071445,0.09688024,1522.4,1522.1,19.70934]
[1674061071661,0.09688024,1522.4,1522.1,19.77534]
[1674061071841,0.979043,1522.7,1522.2,0.4928]
[1674061072048,0.979043,1522.7,1522.3,1.0]
[1674061072260,0.979043,1522.7,1522.3,27.27537]
[1674061072474,0.979043,1522.7,1522.3,19.77822266]
[1674061072678,0.93961342,1522.7,1522.3,19.77822266]
[1674061072893,0.93961342,1522.7,1522.3,21.07822266]
[1674061073364,0.93961342,1522.7,1522.3,1.37185266]
[1674061073556,0.93961342,1522.7,1522.3,21.07643266]
[1674061073781,0.93961342,1522.7,1522.3,21.07843266]
[1674061074180,0.93961342,1522.7,1522.3,14.50943266]
[1674061074619,0.93961342,1522.7,1522.3,7.94064266]
[1674061074778,0.09396134,1522.6,1522.3,7.94064266]
[1674061074985,0.09396134,1522.6,1522.3,7.93479]
[1674061075202,1.93961342,1522.7,1522.3,14.50379]
[1674061075411,0.93961342,1522.7,1522.3,14.50379]
[1674061076113,0.93961342,1522.7,1522.3,14.99659]
[1674061076678,0.93961342,1522.7,1522.5,20.70442]
[1674061076890,0.93961342,1522.7,1522.5,20.77042]
[1674061077316,0.0744909,1523.1,1522.5,22.07042]
[1674061077520,0.0084909,1523.1,1522.6,6.5587]
[1674061077784,0.0084909,1523.1,1522.7,26.26824]
[1674061077940,0.0084909,1523.1,1522.9,19.69923]
[1674061078150,0.0084909,1523.1,1522.9,19.76523]
[1674061078467,0.16372446,1523.8,1523.2,19.69485]
[1674061078721,0.16372446,1523.8,1523.2,20.25335]
[1674061078937,0.16372446,1523.8,1523.2,21.68760984]
[1674061079468,0.16372446,1523.8,1523.3,0.00584882]
[1674061079627,0.16372446,1523.8,1523.4,19.69214]
[1674061079844,0.16372446,1523.8,1523.4,13.19408]
[1674061080255,0.22932691,1523.8,1523.4,14.49408]
[1674061080514,0.16372446,1523.8,1523.4,14.49408]
[1674061080874,0.16372446,1523.8,1523.5,4.00584805]
[1674061080990,0.16372446,1523.8,1523.6,19.6902]
[1674061081359,0.16372446,1523.8,1523.6,19.60618503]
[1674061081513,0.16372446,1523.8,1523.7,1.0]
[1674061081719,0.16372446,1523.8,1523.7,14.12594]
[1674061081994,0.16372446,1523.8,1523.7,14.19194]
[1674061082139,0.16372446,1523.8,1523.7,14.49194]
[1674061082357,0.77372446,1523.8,1523.7,1.366]
[1674061082607,0.85109691,1523.8,1523.6,0.066]
[1674061082819,1.4923,1523.7,1523.5,0.002]
[1674061083030,1.0,1523.6,1523.0,7.86594]
[1674061083297,1.0,1523.6,1522.8,6.56676]
[1674061083298,2.074,1523.2,1522.8,6.56676]
[1674061083527,0.4925,1523.1,1522.8,0.066]
[1674061083730,0.4925,1523.1,1522.9,13.13282]
[1674061083941,1.0,1523.1,1522.9,19.71523]
[1674061084194,1.0,1523.4,1522.9,19.71523]
[1674061084195,0.066,1523.4,1522.9,26.28164]
[1674061084355,0.126,1523.9,1523.1,19.69641]
[1674061084716,2.057,1523.7,1523.1,19.76241]
[1674061084895,0.2057,1523.6,1523.1,19.78941333]
[1674061085097,0.75327236,1523.9,1523.1,19.78941333]
[1674061085326,1.4922,1524.0,1523.1,19.78941333]
[1674061085620,3.5662,1524.0,1523.2,3.0]
[1674061085873,3.074,1524.0,1523.2,3.0]
[1674061086041,3.074,1524.0,1523.3,19.70551288]
[1674061086264,3.074,1524.0,1523.3,19.77151288]
[1674061086265,2.074,1524.0,1523.3,19.77151288]
[1674061086445,1.70513019,1524.2,1523.5,20.69122]
[1674061086659,1.63913019,1524.2,1523.5,20.75722]
[1674061087028,0.63913019,1524.2,1523.5,20.75722]
[1674061087244,0.14693019,1524.2,1523.6,3.0]
[1674061087412,0.14693019,1524.2,1523.7,19.68891]
[1674061087608,1.14693019,1524.2,1523.7,19.75491]
[1674061088032,0.14693019,1524.2,1523.7,13.19194]
[1674061088275,0.14693019,1524.2,1523.7,13.21820603]
[1674061088719,0.77372446,1523.8,1523.7,0.066]
[1674061089038,0.77372446,1523.8,1523.6,0.066]
[1674061089217,0.77372446,1523.8,1523.5,6.62962]
[1674061089560,0.07737245,1523.7,1523.5,6.62962]
[1674061089780,0.16372446,1523.8,1523.5,13.19345]
[1674061090301,0.14693019,1524.2,1523.6,1.4924]
[1674061090518,0.14693019,1524.2,1523.7,19.68786]
[1674061090519,1.14693019,1524.2,1523.7,19.68786]
[1674061090719,3.33812971,1524.2,1523.7,19.75386]
[1674061090881,0.4922,1524.1,1523.7,19.75386]
[1674061091087,0.4922,1524.1,1523.7,0.066]
[1674061091330,0.4922,1524.1,1523.6,0.066]
[1674061091331,0.87523297,1524.1,1523.6,0.066]
[1674061091556,0.87523297,1524.1,1523.5,6.56362]
[1674061091557,0.38303297,1524.1,1523.5,13.19307]
[1674061091739,0.38303297,1524.1,1523.5,6.62945]
[1674061091740,2.057,1523.9,1523.5,6.62945]
[1674061091946,2.074,1523.7,1523.5,0.066]
[1674061092169,2.074,1523.7,1523.3,6.63027]
[1674061092380,1.38109842,1523.9,1523.3,13.19496]
[1674061092640,9.12798,1524.0,1523.3,6.63027]
[1674061092799,0.2074,1523.9,1523.3,13.19496]
[1674061093150,2.14,1524.0,1523.3,13.19496]
[1674061093311,0.21293019,1524.2,1523.5,19.69047]
[1674061093527,0.21293019,1524.2,1523.5,13.19296]
[1674061093528,7.70779019,1524.2,1523.5,13.19296]
[1674061093730,8.11728971,1524.2,1523.5,13.19336]
[1674061093941,3.43622813,1524.2,1523.5,6.62953]
[1674061094201,3.43622813,1524.2,1523.5,13.19336]
[1674061094202,0.82279842,1524.1,1523.5,13.19336]
[1674061094413,2.056,1523.7,1523.2,0.06]
[1674061094725,0.004,1523.5,1522.8,1.3]
[1674061094939,2.074,1523.0,1522.7,0.12673568]
[1674061095097,2.074,1523.0,1522.7,0.06073568]
[1674061095305,0.066,1523.3,1522.7,13.19491568]
[1674061095587,3.419362,1523.5,1522.8,1.0]
[1674061096094,8.6389,1523.3,1522.7,0.12673568]
[1674061096283,1.635577,1523.3,1522.8,0.00275261]
[1674061096498,0.006154,1523.2,1522.7,0.12673568]
[1674061096668,0.498654,1523.2,1522.7,0.06073568]
[1674061096883,2.074,1523.0,1522.7,0.06073568]
[1674061097146,0.4926,1522.9,1522.7,0.06073568]
[1674061097460,2.074,1523.0,1522.7,0.06073568]
[1674061097671,2.080154,1523.2,1522.7,0.06073568]
[1674061097825,0.9264914,1523.2,1522.7,0.06073568]
[1674061098035,2.067,1523.1,1522.7,0.06073568]
[1674061098245,2.5595,1523.1,1522.7,0.06073568]
[1674061098501,2.074,1522.9,1522.7,0.06073568]
[1674061098712,0.4926,1522.8,1522.7,0.06073568]
[1674061098880,0.74926,1522.8,1522.7,0.06073568]
[1674061099086,0.25666,1522.8,1522.7,0.06073568]
[1674061099303,0.25866,1522.8,1522.7,0.06073568]
[1674061099513,7.82351,1522.8,1522.7,0.06073568]
[1674061099728,7.82351,1522.8,1522.7,3.568e-05]
[1674061099729,14.45636,1522.8,1522.7,3.568e-05]
[1674061099939,1.0,1522.7,1522.1,6.5698]
[1674061100151,0.05,1522.6,1522.1,6.6358]
[1674061100562,0.05,1522.6,1522.1,0.066]
[1674061100774,2.057,1522.4,1521.9,6.70699424]
[1674061100978,0.2057,1522.3,1521.9,6.70699424]
[1674061101397,6.684,1522.6,1521.9,13.27772424]
[1674061101398,0.116,1522.6,1521.9,13.27772424]
[1674061101607,0.116,1522.6,1522.0,1.0]
[1674061101608,0.05,1522.6,1522.0,1.0]
[1674061101829,0.05,1522.6,1522.1,19.70881]
[1674061102042,0.05,1522.6,1522.1,19.77481]
[1674061102290,0.05,1522.6,1522.1,19.77911404]
[1674061102504,7.56691,1522.8,1522.1,13.20504]
[1674061102672,7.56691,1522.8,1522.1,0.066]
[1674061102673,2.074,1522.7,1522.1,0.066]
[1674061102868,2.074,1522.7,1522.1,13.13958]
[1674061103083,0.2074,1522.6,1522.1,13.20558]
[1674061104028,2.074,1522.9,1522.1,13.10558]
[1674061104505,2.074,1522.9,1522.4,13.1371]
[1674061104663,0.126,1523.1,1522.4,13.2031]
[1674061104664,0.066,1523.1,1522.4,13.2031]
[1674061104869,8.0932514,1523.1,1522.4,13.2031]
[1674061105086,14.7248214,1523.1,1522.4,13.2031]
[1674061105291,8.1592314,1523.1,1522.4,13.2031]
[1674061105618,8.1592314,1523.1,1522.5,6.60026605]
[1674061105829,1.0,1523.0,1522.5,6.66626605]
[1674061106060,0.81592314,1523.0,1522.5,6.66626605]
[1674061106447,0.81592314,1523.0,1522.5,13.23440605]
[1674061106652,2.080154,1523.2,1522.5,13.23440605]
[1674061106653,0.072154,1523.2,1522.5,13.23440605]
[1674061106863,0.006154,1523.2,1522.5,13.23440605]
[1674061107078,0.006154,1523.2,1522.6,3.0]
[1674061107327,0.006154,1523.2,1522.7,19.70079]
[1674061107654,2.074,1523.0,1522.7,0.066]
[1674061107871,2.074,1522.8,1522.6,0.066]
[1674061108024,0.2074,1522.7,1522.5,0.066]
[1674061108229,15.27257,1523.0,1522.4,6.56849]